bitfinex/quotes_SOLUSD_20250922
["timestamp","ask_amount","ask_price","bid_price","bid_amount"]
[1758563218243,3.76848726,221.47,221.31,26.0]
[1758563218543,1.79816106,221.43,221.33,26.0]
[1758563218710,0.66,221.46,221.36,13.59559401]
[1758563218910,1.79816106,221.44,221.38,13.59559401]
[1758563219244,1.79816106,221.45,221.39,0.66]
[1758563219713,6.97373094,221.46,221.39,6.97487795]
[1758563220325,0.66,221.48,221.4,14.25559401]
[1758563220650,4.51528423,221.47,221.41,0.66]
[1758563220842,2.16351623,221.46,221.41,0.66]
[1758563221037,2.16351623,221.46,221.42,0.66]
[1758563221216,4.51528423,221.47,221.4,1.79816106]
[1758563221539,4.51528423,221.47,221.33,0.66]
[1758563221540,1.79816106,221.42,221.33,0.66]
[1758563221740,4.51691584,221.39,221.33,0.66]
[1758563223750,5.17669995,221.41,221.33,6.97618175]
[1758563224044,5.17669995,221.41,221.34,0.66]
[1758563224228,4.51669995,221.41,221.36,13.59559401]
[1758563224426,4.51669995,221.41,221.37,0.66]
[1758563225352,30.51630385,221.42,221.37,0.66]
[1758563225542,134.2,221.41,221.34,5.17780506]
[1758563225851,134.86,221.41,221.35,15.39375507]
[1758563226231,139.37663063,221.41,221.35,15.39375507]
[1758563226423,134.2,221.41,221.36,2.45816106]
[1758563227047,138.71664505,221.41,221.36,2.45816106]
[1758563227227,134.2,221.41,221.36,2.45816106]
[1758563227421,134.2,221.41,221.39,1.79816106]
[1758563228531,134.2,221.41,221.38,15.39375507]
[1758563228734,134.2,221.41,221.4,15.39375507]
[1758563229041,4.51527021,221.48,221.41,13.59559401]
[1758563229249,2.16423389,221.47,221.44,1.79816106]
[1758563229421,0.66,221.49,221.44,1.79816106]
[1758563229622,0.66,221.48,221.44,1.79816106]
[1758563230047,6.19752818,221.48,221.44,1.79816106]
[1758563230247,4.5148946,221.49,221.43,13.55507057]
[1758563230451,5.17534927,221.47,221.41,4.51644912]
[1758563230630,5.17534927,221.47,221.42,1.79816106]
[1758563230831,5.17534927,221.47,221.42,2.45816106]
[1758563231032,4.5150042,221.49,221.42,1.79816106]
[1758563231250,2.16376845,221.48,221.42,2.45816106]
[1758563232145,0.66,221.47,221.42,1.79816106]
[1758563232530,5.17546351,221.47,221.42,1.79816106]
[1758563232744,1.79816106,221.45,221.39,13.59559401]
[1758563232931,0.66,221.44,221.39,13.59559401]
[1758563233128,0.66,221.44,221.39,16.05375507]
[1758563233332,5.17546351,221.47,221.4,2.45816106]
[1758563233548,5.17546351,221.47,221.41,1.79816106]
[1758563235223,1.79816106,221.46,221.4,14.15045852]
[1758563235441,2.46816106,221.46,221.4,13.49045852]
[1758563235659,28.46816106,221.45,221.39,13.59559401]
[1758563236032,1.79816106,221.41,221.36,13.59559401]
[1758563236254,2.46816106,221.4,221.34,4.5179362]
[1758563236550,2.46816106,221.4,221.33,1.79816106]
[1758563236737,2.46816106,221.4,221.35,13.59559401]
[1758563236941,0.67,221.39,221.35,13.59559401]
[1758563239553,0.67,221.39,221.35,18.11325786]
[1758563239756,2.46816106,221.41,221.35,19.91141892]
[1758563239958,4.51630385,221.42,221.35,33.97420482]
[1758563240163,6.31446491,221.42,221.36,1.79816106]
[1758563240465,0.67,221.46,221.4,1.79816106]
[1758563240645,5.18467268,221.5,221.44,1.79816106]
[1758563240839,5.53145206,221.49,221.44,1.79816106]
[1758563241041,0.67,221.49,221.44,1.79816106]
[1758563241362,0.67,221.48,221.43,1.79816106]
[1758563241743,0.67,221.48,221.42,14.28559401]
[1758563241744,5.18522636,221.48,221.42,16.08375507]
[1758563242337,5.18522636,221.48,221.42,18.80186724]
[1758563242538,5.18522636,221.48,221.42,20.6000283]
[1758563243456,4.51487651,221.49,221.43,1.79816106]
[1758563244479,4.51487651,221.49,221.44,1.79816106]
[1758563244635,5.18487651,221.49,221.44,1.79816106]
[1758563245040,0.67,221.48,221.43,1.79816106]
[1758563246168,5.1851818,221.48,221.42,18.80186724]
[1758563246373,134.2,221.47,221.42,20.6000283]
[1758563246669,134.2,221.47,221.42,18.80186724]
[1758563246968,0.67,221.46,221.42,13.59559401]
[1758563248064,6.31426095,221.43,221.35,13.3727859]
[1758563248268,1.79816106,221.37,221.25,0.2]
[1758563248475,1.79816106,221.35,221.27,0.66]
[1758563248649,1.79816106,221.34,221.27,2.45816106]
[1758563248967,1.79816106,221.32,221.26,1.79816106]
[1758563249172,2.50816106,221.33,221.26,1.79816106]
[1758563249546,2.50816106,221.33,221.26,2.45816106]
[1758563249747,0.71,221.33,221.27,1.79816106]
[1758563250057,4.51834447,221.32,221.28,13.59559401]
[1758563250260,26.0,221.36,221.31,1.79816106]
[1758563250475,0.71,221.35,221.31,1.79816106]
[1758563250652,0.71,221.35,221.3,1.79816106]
[1758563251170,26.0,221.36,221.3,2.45816106]
[1758563251778,4.51773209,221.35,221.3,2.45816106]
[1758563252405,4.51773209,221.35,221.3,1.79816106]
[1758563252568,1.79816106,221.31,221.27,13.48210168]
[1758563252889,2.50816106,221.3,221.25,13.79559401]
[1758563253269,0.71,221.3,221.25,13.79559401]
[1758563253689,5.22885892,221.3,221.25,13.79559401]
[1758563253885,26.0,221.32,221.26,2.45816106]
[1758563254089,26.0,221.32,221.27,1.79816106]
[1758563254292,0.71,221.31,221.27,1.79816106]
[1758563254483,0.71,221.31,221.26,1.79816106]
[1758563254873,0.71,221.31,221.25,18.31535405]
[1758563255072,4.51864313,221.31,221.26,2.45816106]
[1758563256106,30.5184922,221.32,221.27,2.45816106]
[1758563256282,31.2284922,221.32,221.27,2.45816106]
[1758563256703,31.2284922,221.32,221.27,1.79816106]
[1758563256885,26.71,221.32,221.27,6.3174981]
[1758563257085,4.5182162,221.33,221.27,0.66]
[1758563257276,0.71,221.32,221.27,1.79816106]
[1758563257478,0.71,221.32,221.26,1.79816106]
[1758563258300,7.0267097,221.31,221.25,27.24906004]
[1758563258594,1.79816106,221.29,221.25,27.24906004]
[1758563258784,0.71,221.28,221.25,27.24906004]
[1758563259191,0.71,221.27,221.25,27.24906004]
[1758563259402,2.50816106,221.29,221.25,27.24906004]
[1758563259603,0.71,221.28,221.25,27.24906004]
[1758563260269,2.50816106,221.27,221.25,0.2]
[1758563260972,0.71,221.26,221.25,0.2]
[1758563261173,2.50816106,221.26,221.25,0.2]
[1758563262101,0.71,221.26,221.25,0.2]
[1758563262485,5.22956973,221.26,221.25,0.2]
[1758563263375,8.04067746,221.26,221.25,0.2]
[1758563265196,5.22956973,221.26,221.25,0.2]
[1758563265404,8.04067746,221.26,221.25,0.2]
[1758563266900,30.51956973,221.26,221.25,0.2]
[1758563267098,34.04067746,221.26,221.25,0.2]
[1758563271499,4.51894075,221.3,221.25,0.86]
[1758563271711,2.81110773,221.28,221.25,0.2]
[1758563271888,2.81110773,221.26,221.25,0.2]
[1758563272093,3.52110773,221.26,221.25,0.2]
[1758563272392,2.81110773,221.26,221.25,0.2]
[1758563273490,7.33059121,221.27,221.25,0.2]
[1758563273688,0.71,221.28,221.25,0.2]
[1758563273689,7.33028474,221.28,221.25,0.2]
[1758563274700,2.81110773,221.27,221.25,0.2]
[1758563275206,8.04028474,221.28,221.25,0.2]
[1758563275498,7.33028474,221.28,221.25,0.2]
[1758563276004,8.04028474,221.28,221.25,0.2]
[1758563276803,7.33028474,221.28,221.25,0.2]
[1758563277101,4.51858084,221.31,221.26,0.66]
[1758563277291,4.51858084,221.31,221.27,0.71]
[1758563277493,7.32968857,221.31,221.25,8.24086888]
[1758563277880,4.51858084,221.31,221.26,2.81110773]
[1758563278076,3.51110773,221.33,221.27,3.52110773]
[1758563278281,26.0,221.32,221.27,3.52110773]
[1758563279213,31.21816729,221.33,221.28,0.71]
[1758563279706,30.51816729,221.33,221.28,0.71]
[1758563279902,31.21816729,221.33,221.28,0.71]
[1758563280103,30.51816729,221.33,221.27,7.33039327]
[1758563280303,34.02927502,221.33,221.27,4.51928554]
[1758563280612,35.64,221.35,221.29,2.81110773]
[1758563280786,40.85778423,221.35,221.28,0.71]
[1758563280982,43.66889196,221.35,221.28,3.52110773]
[1758563281403,2.81110773,221.34,221.28,8.04021472]
[1758563282298,43.66889196,221.35,221.28,8.04021472]
[1758563282906,43.66889196,221.35,221.29,2.81110773]
[1758563284196,3.51110773,221.34,221.28,3.52110773]
[1758563284885,2.81110773,221.32,221.25,0.2]
[1758563285086,3.51110773,221.31,221.25,16.60670174]
[1758563285322,0.7,221.35,221.28,16.40670174]
[1758563285611,3.51110773,221.35,221.29,2.81110773]
[1758563286404,8.02887439,221.35,221.29,2.81110773]
[1758563286618,0.7,221.34,221.28,7.3301308]
[1758563287485,72.91423321,221.36,221.28,7.3301308]
[1758563287486,26.0,221.36,221.31,2.81110773]
[1758563287687,4.5173376,221.37,221.33,2.81110773]
[1758563287894,14.80372953,221.39,221.34,3.52110773]
[1758563287895,4.51707426,221.39,221.34,3.52110773]
[1758563288406,4.51707426,221.39,221.3,13.59559401]
[1758563288407,4.51673547,221.4,221.35,2.81110773]
[1758563288611,4.51673547,221.4,221.35,3.52110773]
[1758563288824,3.66351203,221.45,221.3,13.59559401]
[1758563288825,4.51607104,221.44,221.38,2.81110773]
[1758563289127,4.51607104,221.44,221.39,2.81110773]
[1758563289612,0.7,221.43,221.38,2.81110773]
[1758563289782,0.7,221.43,221.39,13.59559401]
[1758563289986,0.7,221.43,221.39,26.9117174]
[1758563290687,5.21621686,221.43,221.39,26.9117174]
[1758563291590,2.81110773,221.45,221.39,34.23972707]
[1758563291591,138.71585859,221.45,221.39,34.23972707]
[1758563291787,138.71585859,221.45,221.41,13.59559401]
[1758563291991,139.41585859,221.45,221.41,13.59559401]
[1758563292702,134.2,221.45,221.41,20.92316647]
[1758563292903,134.2,221.45,221.42,0.71]
[1758563293102,134.2,221.45,221.41,20.92316647]
[1758563293307,134.2,221.45,221.41,21.63316647]
[1758563293819,134.2,221.45,221.43,13.59559401]
[1758563294020,134.2,221.45,221.44,17.11670174]
[1758563294189,0.7,221.51,221.45,13.59559401]
[1758563294390,0.67,221.5,221.46,2.81110773]
[1758563295015,5.18469724,221.5,221.46,2.81110773]
[1758563295191,7.32580497,221.5,221.44,0.68]
[1758563295398,0.67,221.49,221.44,13.59559401]
[1758563295694,0.67,221.49,221.44,17.08670174]
[1758563296597,0.67,221.49,221.44,21.60251891]
[1758563296798,4.51469724,221.5,221.45,2.81110773]
[1758563297192,5.18469724,221.5,221.45,2.81110773]
[1758563297697,4.51439039,221.52,221.47,16.40670174]
[1758563298219,0.67,221.53,221.48,3.49110773]
[1758563298415,0.67,221.53,221.48,2.81110773]
[1758563298611,4.51406634,221.53,221.48,2.81110773]
[1758563298818,5.18406634,221.53,221.48,2.81110773]
[1758563299018,5.18406634,221.53,221.41,26.0]
[1758563299019,28.81110773,221.49,221.33,0.68]
[1758563299191,2.81110773,221.41,221.33,0.68]
[1758563299396,2.81110773,221.41,221.33,3.49110773]
[1758563299705,2.81110773,221.41,221.34,0.68]
[1758563300028,2.81110773,221.41,221.35,13.59559401]
[1758563300224,2.81110773,221.41,221.35,14.27559401]
[1758563300395,2.81110773,221.41,221.37,13.59559401]
[1758563300732,2.81110773,221.41,221.37,14.27559401]
[1758563302012,28.81110773,221.44,221.39,13.59559401]
[1758563302405,29.48110773,221.44,221.37,18.79277454]
[1758563302609,29.48110773,221.44,221.38,36.14]
[1758563302922,31.18605994,221.44,221.39,13.59559401]
[1758563303127,28.81110773,221.44,221.39,14.27559401]
[1758563303416,2.81110773,221.41,221.35,13.32938097]
[1758563303621,0.67,221.4,221.34,13.59559401]
[1758563303809,2.81110773,221.36,221.34,13.59559401]
[1758563304322,2.81110773,221.36,221.32,49.81559401]
[1758563304490,2.81110773,221.36,221.32,14.27559401]
[1758563304694,2.81110773,221.36,221.32,50.47559401]
[1758563304930,2.81110773,221.36,221.32,54.99393812]
[1758563305512,2.81110773,221.36,221.32,50.47559401]
[1758563305709,7.32866611,221.36,221.32,14.27559401]
[1758563305919,2.81110773,221.34,221.3,13.59559401]
[1758563306600,7.32907507,221.34,221.3,13.59559401]
[1758563307001,2.81110773,221.32,221.25,0.88]
[1758563307234,2.81110773,221.3,221.26,13.59559401]
[1758563307434,0.66,221.29,221.25,0.2]
[1758563307732,0.66,221.29,221.25,13.79559401]
[1758563308031,2.81110773,221.28,221.25,13.79559401]
[1758563308325,2.81110773,221.28,221.26,13.59559401]
[1758563308500,15.81280785,221.34,221.26,14.31559401]
[1758563308501,30.51796734,221.34,221.26,14.31559401]
[1758563308700,28.81110773,221.34,221.28,13.59559401]
[1758563308903,33.32908628,221.34,221.28,13.59559401]
[1758563309520,33.32908628,221.34,221.29,0.72]
[1758563309901,33.32908628,221.34,221.28,13.59559401]
[1758563310122,33.98908628,221.34,221.28,13.59559401]
[1758563310323,2.81110773,221.34,221.28,18.11461209]
[1758563310621,7.32904916,221.34,221.28,18.83461209]
[1758563311030,2.81110773,221.34,221.28,18.83461209]
[1758563311401,2.81110773,221.34,221.28,14.31559401]
[1758563311608,2.81110773,221.32,221.3,13.59559401]
[1758563311826,2.81110773,221.31,221.3,13.59559401]
[1758563312415,2.81110773,221.32,221.3,13.59559401]
[1758563313204,4.51814193,221.33,221.3,13.59559401]
[1758563313406,7.32924966,221.33,221.3,13.59559401]
[1758563314323,3.47110773,221.34,221.3,13.59559401]
[1758563314630,7.32913232,221.34,221.3,13.59559401]
[1758563314811,7.98913232,221.34,221.3,13.59559401]
[1758563315911,2.81110773,221.32,221.3,13.59559401]
[1758563316102,2.81110773,221.32,221.29,13.59559401]
[1758563317527,134.2,221.31,221.29,49.65559401]
[1758563317731,137.67110773,221.31,221.25,18.05456644]
[1758563317938,137.67110773,221.31,221.26,13.59559401]
[1758563317939,2.81110773,221.29,221.26,13.59559401]
[1758563318131,2.81110773,221.3,221.26,13.59559401]
[1758563318298,137.01110773,221.31,221.26,14.31559401]
[1758563318505,137.67110773,221.31,221.26,14.31559401]
[1758563319140,134.2,221.31,221.26,14.31559401]
[1758563319331,134.2,221.31,221.27,5.23936548]
[1758563319640,134.86,221.31,221.27,4.51936548]
[1758563320426,134.86,221.31,221.26,13.59559401]
[1758563320606,3.47110773,221.3,221.26,13.59559401]
[1758563320932,3.47110773,221.29,221.26,49.59559401]
[1758563321824,0.66,221.29,221.26,49.59559401]
[1758563322042,5.17896915,221.29,221.25,13.53495443]
[1758563322227,0.66,221.28,221.25,49.53495443]
[1758563322730,2.81110773,221.26,221.25,0.2]
[1758563323105,3.47110773,221.26,221.25,0.2]
[1758563323808,7.99067746,221.26,221.25,0.2]
[1758563324634,6.97895565,221.26,221.25,0.2]
[1758563325838,134.2,221.31,221.25,0.2]
[1758563326018,26.0,221.28,221.25,0.2]
[1758563326332,27.79938592,221.31,221.25,14.51559401]
[1758563326636,2.45938592,221.3,221.25,13.79559401]
[1758563326817,0.66,221.29,221.25,13.79559401]
[1758563327028,0.66,221.28,221.25,0.2]
[1758563327212,0.66,221.27,221.25,0.2]
[1758563327412,2.45938592,221.29,221.25,0.2]
[1758563327632,0.66,221.29,221.25,0.2]
[1758563327839,1.79938592,221.3,221.25,0.2]
[1758563327840,4.51936548,221.27,221.25,0.2]
[1758563328341,0.66,221.28,221.25,0.2]
[1758563328514,26.0,221.3,221.26,0.72]
[1758563328915,0.66,221.29,221.25,0.2]
[1758563329126,26.0,221.3,221.25,4.71974623]
[1758563329338,26.66,221.3,221.25,4.71974623]
[1758563329516,26.66,221.3,221.25,5.43974623]
[1758563329710,31.17876355,221.3,221.25,0.2]
[1758563329941,5.17901455,221.29,221.25,0.2]
[1758563330131,0.66,221.29,221.25,0.2]
[1758563330760,166.51770553,221.33,221.25,6.51914032]
[1758563330945,134.2,221.33,221.3,1.79938592]
[1758563331239,134.2,221.33,221.29,1.79938592]
[1758563332528,134.86,221.33,221.29,1.79938592]
[1758563333727,134.2,221.33,221.3,0.72]
[1758563334131,134.2,221.33,221.3,13.59559401]
[1758563334746,134.2,221.33,221.3,15.39497993]
[1758563335127,134.2,221.33,221.3,19.9137293]
[1758563335848,134.2,221.33,221.32,15.39497993]
[1758563336248,134.2,221.33,221.32,16.11497993]
[1758563336547,134.2,221.33,221.32,20.6333244]
[1758563339368,134.2,221.33,221.32,56.4333244]
[1758563339647,134.2,221.33,221.32,55.7133244]
[1758563339845,134.2,221.33,221.32,53.91393848]
[1758563340050,134.2,221.33,221.32,55.7133244]
[1758563340430,4.51834447,221.32,221.25,18.31535519]
[1758563340635,0.68,221.31,221.26,35.8]
[1758563341142,0.68,221.3,221.26,35.8]
[1758563341746,0.68,221.3,221.27,4.51936548]
[1758563341944,0.68,221.3,221.28,13.59559401]
[1758563344439,0.68,221.32,221.28,13.59559401]
[1758563344743,0.68,221.31,221.28,13.59559401]
[1758563344948,0.68,221.3,221.28,49.35559401]
[1758563345776,0.68,221.32,221.28,55.67413932]
[1758563345925,134.2,221.34,221.3,15.39497993]
[1758563346122,134.2,221.34,221.32,15.39497993]
[1758563346323,134.2,221.34,221.32,13.59559401]
[1758563346526,134.2,221.34,221.32,15.39497993]
[1758563346953,134.2,221.34,221.32,19.91323093]
[1758563347448,134.2,221.34,221.32,15.39497993]
[1758563348355,134.2,221.34,221.33,49.33559401]
[1758563348553,134.88,221.34,221.25,11.49905254]
[1758563348754,0.68,221.33,221.27,1.79938592]
[1758563348951,0.68,221.33,221.3,13.59559401]
[1758563349530,0.68,221.33,221.3,1.79938592]
[1758563349753,134.2,221.34,221.3,35.72]
[1758563350052,0.68,221.33,221.3,35.72]
[1758563350251,134.2,221.34,221.31,13.59559401]
[1758563350448,134.2,221.34,221.33,19.91312026]
[1758563350627,134.2,221.34,221.33,55.61312026]
[1758563350827,134.2,221.34,221.33,51.09497993]
[1758563352354,134.2,221.34,221.33,13.59559401]
[1758563352543,134.88,221.34,221.33,49.29559401]
[1758563353150,134.2,221.34,221.33,49.29559401]
[1758563354850,134.2,221.34,221.33,13.59559401]
[1758563355162,134.2,221.34,221.33,51.05497993]
[1758563355371,134.2,221.4,221.33,56.23312026]
[1758563355560,134.2,221.4,221.36,1.79938592]
[1758563355852,134.2,221.4,221.38,13.59559401]
[1758563355853,134.9,221.4,221.38,13.59559401]
[1758563356057,134.2,221.4,221.38,13.59559401]
[1758563356259,134.2,221.4,221.38,15.39497993]
[1758563356453,134.2,221.4,221.39,15.39497993]
[1758563356650,0.7,221.44,221.4,13.59559401]
[1758563356855,0.7,221.43,221.4,49.25559401]
[1758563357167,4.07697737,221.43,221.4,49.25559401]
[1758563357344,0.7,221.43,221.4,49.25559401]
[1758563357954,0.7,221.43,221.42,13.59559401]
[1758563359860,4.51572048,221.45,221.42,13.59559401]
[1758563360045,5.21572048,221.45,221.42,13.59559401]
[1758563360251,1.79938592,221.43,221.31,0.66]
[1758563360450,26.7,221.42,221.32,49.25559401]
[1758563360786,1.79938592,221.36,221.27,4.51936548]
[1758563360942,2.49938592,221.35,221.28,37.45938592]
[1758563361143,2.49938592,221.35,221.29,13.59559401]
[1758563361659,0.7,221.35,221.29,15.39497993]
[1758563362060,0.7,221.35,221.31,13.59559401]
[1758563362242,2.49938592,221.34,221.28,13.59559401]
[1758563362448,2.49938592,221.34,221.3,13.59559401]
[1758563362754,6.31773039,221.32,221.27,13.59559401]
[1758563363062,0.7,221.31,221.29,13.59559401]
[1758563364338,26.0,221.37,221.3,2.45938592]
[1758563364547,11.99146527,221.41,221.33,15.39497993]
[1758563364751,6.31609775,221.4,221.34,35.66]
[1758563364945,4.51671183,221.4,221.35,13.59559401]
[1758563365172,0.7,221.39,221.35,13.59559401]
[1758563365563,0.7,221.38,221.35,13.59559401]
[1758563365751,0.7,221.37,221.36,13.59559401]
[1758563366085,0.7,221.37,221.36,49.25559401]
[1758563366370,0.7,221.39,221.36,49.25559401]
[1758563366674,6.31609775,221.4,221.36,49.25559401]
[1758563366877,0.7,221.39,221.36,49.25559401]
[1758563367090,0.7,221.38,221.36,49.25559401]
[1758563367252,2.50938592,221.37,221.35,35.66]
[1758563367573,0.71,221.36,221.35,35.66]
[1758563367951,0.71,221.36,221.32,13.59559401]
[1758563368250,0.71,221.36,221.34,13.59559401]
[1758563368451,1.79938592,221.37,221.34,13.59559401]
[1758563368673,7.02673246,221.37,221.34,13.59559401]
[1758563369550,5.22734654,221.37,221.34,13.59559401]
[1758563370252,4.51707421,221.39,221.34,49.93559401]
[1758563370454,4.51707421,221.39,221.34,49.25559401]
[1758563370662,7.02646013,221.39,221.34,13.59559401]
[1758563370976,134.2,221.38,221.35,35.66]
[1758563371150,134.91,221.38,221.35,35.66]
[1758563371350,134.91,221.38,221.34,13.59559401]
[1758563371560,134.91,221.38,221.35,35.66]
[1758563372658,139.42720172,221.38,221.35,35.66]
[1758563374578,134.2,221.38,221.36,14.27559401]
[1758563374780,134.2,221.38,221.36,16.07497993]
[1758563374975,134.2,221.38,221.37,16.07497993]
[1758563375480,5.22551077,221.46,221.38,13.59559401]
[1758563375481,0.71,221.46,221.38,13.59559401]
[1758563375660,0.71,221.46,221.41,13.59559401]
[1758563375865,4.08808256,221.46,221.42,35.66]
[1758563376063,3.37808256,221.46,221.43,13.59559401]
[1758563376259,0.71,221.49,221.45,13.59559401]
[1758563376574,3.37669447,221.48,221.45,49.25559401]
[1758563377364,0.71,221.49,221.45,49.25559401]
[1758563377579,3.37537588,221.49,221.45,53.77114573]
[1758563377782,2.50938592,221.52,221.45,56.25053165]
[1758563378095,1.79938592,221.46,221.45,35.66]
[1758563378291,2.50938592,221.46,221.45,35.66]
[1758563378466,2.50938592,221.46,221.4,13.59559401]
[1758563378467,0.71,221.46,221.44,35.66]
[1758563378663,1.79938592,221.48,221.44,35.66]
[1758563378879,2.50938592,221.51,221.45,13.59559401]
[1758563379081,3.37440653,221.5,221.45,14.27559401]
[1758563379390,3.37440653,221.49,221.45,14.27559401]
[1758563379593,0.1,221.53,221.49,13.59559401]
[1758563379769,0.1,221.53,221.44,13.24939161]
[1758563379975,0.71,221.52,221.45,49.91559401]
[1758563380273,0.71,221.52,221.45,51.71497993]
[1758563380470,0.71,221.52,221.45,20.59066458]
[1758563380675,0.71,221.52,221.47,13.59559401]
[1758563380875,1.79938592,221.5,221.47,13.59559401]
[1758563381079,1.79938592,221.51,221.48,35.64]
[1758563381274,0.71,221.51,221.48,35.64]
[1758563381669,5.22447237,221.51,221.48,35.64]
[1758563382385,0.1,221.53,221.48,35.64]
[1758563382575,0.1,221.53,221.49,16.07497993]
[1758563382779,0.1,221.53,221.51,13.59559401]
[1758563382973,0.1,221.53,221.51,49.23559401]
[1758563385476,0.1,221.53,221.52,35.64]
[1758563386192,0.1,221.53,221.5,13.59559401]
[1758563386404,0.81,221.53,221.51,35.64]
[1758563386571,0.1,221.53,221.5,35.64]
[1758563386771,0.81,221.53,221.5,35.64]
[1758563386996,5.32407763,221.53,221.5,35.64]
[1758563387293,0.81,221.53,221.5,35.64]
[1758563387794,8.12852487,221.53,221.5,35.64]
[1758563388499,0.1,221.53,221.51,14.27559401]
[1758563388887,0.1,221.53,221.51,13.59559401]
[1758563390103,0.1,221.53,221.51,21.59444827]
[1758563390820,0.1,221.53,221.51,18.79002337]
[1758563392775,0.1,221.53,221.52,49.21559401]
[1758563395483,0.1,221.53,221.52,54.40985908]
[1758563395706,0.1,221.53,221.52,13.59559401]
[1758563395885,0.1,221.53,221.52,49.21559401]
[1758563400295,0.1,221.53,221.52,49.93559401]
[1758563400917,0.1,221.53,221.52,53.72985908]
[1758563402887,0.1,221.53,221.52,49.21559401]
[1758563403616,0.1,221.53,221.52,53.72985908]
[1758563405012,0.1,221.53,221.52,53.70985908]
[1758563405412,0.1,221.53,221.52,57.23428398]
[1758563407397,0.8,221.53,221.44,13.84127414]
[1758563407693,0.8,221.53,221.47,16.40001891]
[1758563407908,0.8,221.53,221.48,35.6]
[1758563408414,0.8,221.53,221.5,13.59559401]
[1758563408620,0.8,221.53,221.51,35.6]
[1758563408911,0.1,221.53,221.52,13.59559401]
[1758563409117,0.1,221.53,221.52,14.31559401]
[1758563409315,0.1,221.53,221.52,18.82985908]
[1758563413912,0.1,221.53,221.52,54.42985908]
[1758563416930,0.1,221.53,221.52,57.23428398]
[1758563417226,0.1,221.53,221.52,18.82985908]
[1758563417401,0.1,221.53,221.52,54.40985908]
[1758563418300,0.1,221.54,221.52,60.01870888]
[1758563418517,0.1,221.54,221.52,56.49428398]
[1758563418829,0.1,221.54,221.53,14.27559401]
[1758563419228,0.1,221.54,221.53,18.78965531]
[1758563419606,0.1,221.55,221.53,18.78965531]
[1758563419607,0.1,221.55,221.54,39.59559401]
[1758563419831,0.1,221.55,221.54,75.85559401]
[1758563420713,0.1,221.55,221.54,78.66001891]
[1758563421731,0.1,221.55,221.54,83.17387645]
[1758563423343,0.76,221.55,221.54,82.49387645]
[1758563423626,0.76,221.55,221.54,56.49387645]
[1758563424634,0.76,221.55,221.54,53.68945155]
[1758563425010,0.76,221.55,221.53,13.59559401]
[1758563425206,0.66,221.54,221.51,13.59559401]
[1758563425434,0.66,221.53,221.52,49.17559401]
[1758563429134,0.66,221.53,221.52,53.68985908]
[1758563430439,0.1,221.55,221.53,13.59559401]
[1758563430643,0.1,221.55,221.54,51.96001891]
[1758563430833,0.1,221.55,221.54,52.67001891]
[1758563432330,0.1,221.55,221.54,57.18387645]
[1758563435039,0.1,221.55,221.54,54.37945155]
[1758563435344,0.1,221.55,221.54,56.47387645]
[1758563435718,0.1,221.55,221.54,57.18387645]
[1758563436332,0.1,221.55,221.54,56.47387645]
[1758563437053,0.1,221.55,221.54,57.18387645]
[1758563437244,0.1,221.55,221.54,21.62387645]
[1758563437633,0.1,221.55,221.54,57.18387645]
[1758563438034,1e-08,221.55,221.54,57.18387645]
[1758563438440,0.1,221.58,221.57,44.10884038]
[1758563438638,0.1,221.58,221.57,13.59559401]
[1758563438850,0.1,221.58,221.57,49.15559401]
[1758563439144,0.1,221.58,221.57,56.47326528]
[1758563439341,0.77,221.58,221.57,56.47326528]
[1758563440930,0.1,221.58,221.57,56.47326528]
[1758563442534,0.1,221.58,221.57,57.18326528]
[1758563442728,0.1,221.58,221.57,54.37884038]
[1758563442947,0.1,221.58,221.57,57.18326528]
[1758563443537,0.1,221.58,221.57,18.10884038]
[1758563443743,0.1,221.58,221.57,79.64884038]
[1758563444050,0.1,221.58,221.57,82.45326528]
[1758563444652,0.1,221.58,221.57,83.16326528]
[1758563445030,0.1,221.58,221.57,82.45326528]